fUST/lending_fUST_20251104
["ID","MTS","AMOUNT","RATE_DAILY","PERIOD"]
[392983967,1762195847464,-500.0,0.00022151,7]
[392983969,1762195847474,-681.0,0.00022206,7]
[392983971,1762195847483,-500.0,0.00022206,7]
[392983973,1762195847493,-681.0,0.00022261,7]
[392983975,1762195847502,-423.0,0.00022261,7]
[392983977,1762195847512,-681.0,0.00022316,7]
[392983979,1762195847521,-225.18697532,0.00022341,2]
[392983981,1762195847530,-500.0,0.00022354,7]
[392983983,1762195847539,-1316.06109092,0.00022368,2]
[392983985,1762195847549,-195.62038484,0.00022368,2]
[392983987,1762195847558,-500.0,0.00022368,2]
[392983989,1762195847568,-681.0,0.0002237,7]
[392983991,1762195847576,-681.0,0.00022425,7]
[392983993,1762195847586,-6274.28022337,0.00022463,2]
[392983995,1762195847595,-859.04969638,0.00022468,2]
[392983998,1762195847604,-1500.0,0.00022468,2]
[392984000,1762195847614,-681.0,0.0002248,7]
[392984002,1762195847623,-260.0,0.00022483,2]
[392984004,1762195847632,-508.50782228,0.00022521,2]
[392984006,1762195847641,-681.0,0.00022535,7]
[392984008,1762195847650,-1500.0,0.00022568,2]
[392984009,1762195847659,-46.50816242,0.00022568,2]
[392984114,1762195848653,-3.24942226,0.0002123,7]
[392984118,1762195848680,-500.0,0.00021157,2]
[392984120,1762195848689,-162.88643674,0.0002123,7]
[392984122,1762195848699,-151.0,0.0002123,7]
[392984124,1762195848708,-258.61356326,0.0002123,7]
[392984134,1762195848795,5000.0,0.00021015,2]
[392984179,1762195871460,704.74733625,0.00021015,2]
[392984180,1762195900488,5000.0,0.00021,2]
[392984181,1762195906776,178.187,0.00020708,2]
[392984182,1762195907999,150.0,0.00019597,2]
[392984183,1762195908884,150.0,0.0002053,2]
[392984184,1762195910572,3920.75,0.0002,2]
[392984185,1762195922460,5000.0,0.00021,2]
[392984186,1762195937171,5072.6296374,0.00020132,2]
[392984187,1762195944869,5000.0,0.00021,2]
[392984188,1762195966755,5000.0,0.00021,2]
[392984189,1762195986350,150.0,0.00019436,2]
[392984190,1762195986761,150.0,0.00020361,2]
[392984191,1762195988642,5000.0,0.00021,2]
[392984192,1762196061672,150.0,0.00019454,2]
[392984193,1762196062166,150.0,0.0002038,2]
[392984194,1762196067103,5000.0,0.00021,2]
[392984195,1762196089824,5000.0,0.00021,2]
[392984196,1762196135844,150.0,0.00019516,2]
[392984197,1762196136254,150.0,0.00020446,2]
[392984199,1762196195541,999.0,0.00020122,2]
[392984200,1762196207168,150.0,0.00019469,2]
[392984201,1762196207745,150.0,0.00020396,2]
[392984202,1762196268681,403.57982481,0.00021,2]
[392984203,1762196277513,150.0,0.00019459,2]
[392984204,1762196277901,150.0,0.00020386,2]
[392984205,1762196300726,445.25652678,0.0002081,2]
[392984206,1762196302931,1779.24508102,0.0002081,2]
[392984207,1762196347886,150.0,0.00019395,2]
[392984208,1762196348281,150.0,0.00020319,2]
[392984209,1762196413251,841.71585117,0.0002081,2]
[392984210,1762196415448,3366.86340466,0.0002081,2]
[392984211,1762196416993,150.0,0.00019457,2]
[392984212,1762196417397,150.0,0.00020383,2]
[392984213,1762196485812,150.0,0.00019524,2]
[392984214,1762196486217,150.0,0.00020454,2]
[392984216,1762196552064,150.0,0.00019485,2]
[392984217,1762196552467,150.0,0.00020412,2]
[392984224,1762196618292,150.0,0.00019634,2]
[392984225,1762196618721,150.0,0.00020569,2]
[392984226,1762196684587,150.0,0.00019618,2]
[392984227,1762196684994,150.0,0.00020552,2]
[392984228,1762196697406,4006.34048191,0.00020999,2]
[392984229,1762196808190,200.0,0.00032,120]
[392984230,1762196843060,1000.0,0.000324,120]
[392984243,1762196982866,3505.54792168,0.00021,2]
[392984284,1762197032745,-301.28010713,0.00021008,5]
[392984285,1762197032756,-150.0,0.00021044,2]
[392984286,1762197032766,-313.0,0.00021044,2]
[392984287,1762197032776,-178.187,0.00021045,2]
[392984288,1762197032786,-1200.0,0.00021071,2]
[392984289,1762197032795,-300.0,0.00021071,2]
[392984290,1762197032805,-300.0,0.00021071,2]
[392984291,1762197032814,-1200.0,0.00021071,2]
[392984292,1762197032824,-300.0,0.00021071,2]
[392984293,1762197032833,-300.0,0.00021071,2]
[392984294,1762197032843,-213.81580437,0.00021071,2]
[392984296,1762197032852,-270.38752253,0.00021071,2]
[392984297,1762197032863,-50000.0,0.00021072,2]
[392984298,1762197032872,-14943.61597166,0.00021073,2]
[392984299,1762197032882,-500.0,0.000211,2]
[392984300,1762197032893,-209.40437684,0.00021117,2]
[392984301,1762197032902,-1095.78,0.0002112,3]
[392984302,1762197032912,-547.89,0.0002112,3]
[392984303,1762197032923,-273.94,0.0002112,3]
[392984304,1762197032938,-821.87,0.0002112,3]
[392984306,1762197032952,-6594.02616767,0.0002112,10]
[392984392,1762197038442,-1017.54383233,0.0002112,10]
[392984394,1762197038452,-2589.59538072,0.0002112,10]
[392984404,1762197038541,-1815.24461928,0.0002112,10]
[392984406,1762197038551,-19606.2890916,0.0002113,2]
[392984408,1762197038562,-584.29790623,0.0002113,2]
[392984644,1762197040718,-3355.18073061,0.0002113,2]
[392984647,1762197040730,-4355.61241024,0.0002113,2]
[392984954,1762197043683,-2829.02586251,0.0002113,2]
[392985268,1762197046671,-7193.86,0.0002112,10]
[392985270,1762197046680,-654269.59399881,0.0002113,2]
[392985272,1762197046690,-500.0,0.00021173,2]
[392985274,1762197046699,-4416.67806032,0.00021194,2]
[392985276,1762197046708,-217.15233878,0.00021665,2]
[392985278,1762197046717,-1000.0,0.00021721,2]
[392985280,1762197046726,-2788.56898816,0.00021869,2]
[392985282,1762197046735,-918.5874314,0.00021869,2]
[392985284,1762197046744,-3670.67537586,0.00021869,2]
[392985286,1762197046754,-500.74594057,0.00021973,2]
[392985288,1762197046763,-500.0,0.00021973,2]
[392985290,1762197046774,-500.0,0.00021973,2]
[392985292,1762197046783,-151.0,0.0002199,7]
[392985294,1762197046791,-395.033585,0.0002199,7]
[392985296,1762197046800,-395.033585,0.0002199,7]
[392985298,1762197046809,-395.033585,0.0002199,7]
[392985300,1762197046818,-395.033585,0.0002199,7]
[392985302,1762197046828,-151.0,0.0002199,7]
[392985304,1762197046837,-151.0,0.0002199,7]
[392985306,1762197046846,-151.0,0.0002199,7]
[392985308,1762197046857,-151.0,0.0002199,7]
[392985310,1762197046866,-2463.384819,0.0002199,7]
[392985312,1762197046875,-2463.384819,0.0002199,7]
[392985314,1762197046884,-2463.384819,0.0002199,7]
[392985316,1762197046893,-2463.384819,0.0002199,7]
[392985318,1762197046903,-151.0,0.0002199,7]
[392985320,1762197046912,-151.0,0.0002199,7]
[392985322,1762197046921,-151.0,0.0002199,7]
[392985324,1762197046930,-151.0,0.0002199,7]
[392985326,1762197046939,-151.0,0.0002199,7]
[392985328,1762197046948,-151.0,0.0002199,7]
[392985330,1762197046957,-151.0,0.0002199,7]
[392985332,1762197046967,-151.0,0.0002199,7]
[392985334,1762197046976,-187.65288,0.0002199,7]
[392985336,1762197046985,-151.0,0.0002199,7]
[392985338,1762197046994,-278.307965,0.0002199,7]
[392985340,1762197047003,-152.625312,0.0002199,7]
[392985342,1762197047012,-100000.0,0.0002199,2]
[392985344,1762197047023,-26857.31,0.00022,7]
[392985346,1762197047032,-512.14372084,0.00022,7]
[392985348,1762197047041,-11919.7937405,0.00022046,2]
[392985350,1762197047051,-2244.9708288,0.00022046,2]
[392985352,1762197047060,-749.3613911,0.00022046,2]
[392985354,1762197047070,-1194.1142176,0.00022046,2]
[392985356,1762197047079,-820.68,0.000221,7]
[392985358,1762197047090,-1074.61,0.000221,14]
[392985360,1762197047098,-225.18697532,0.00022213,2]
[392985362,1762197047108,-517.45018803,0.00022268,2]
[392985364,1762197047118,-2191.56,0.0002249,3]
[392985366,1762197047127,-1095.78,0.0002249,3]
[392985368,1762197047135,-547.88,0.0002249,3]
[392985370,1762197047145,-1000.0,0.00022521,2]
[392985372,1762197047154,-500.0,0.00022588,2]
[392985374,1762197047166,-151.0,0.0002262,2]
[392985376,1762197047175,-500.0,0.0002262,2]
[392985378,1762197047184,-151.0,0.00022675,2]
[392985380,1762197047194,-500.0,0.00022675,2]
[392985382,1762197047203,-235.37144656,0.0002273,2]
[392985384,1762197047213,-364.64977058,0.0002273,2]
[392985386,1762197047222,-233.51889341,0.00022761,2]
[392985388,1762197047231,-1680.0,0.00022919,2]
[392985390,1762197047240,-420.0,0.00022919,2]
[392985392,1762197047249,-420.0,0.00022919,2]
[392985394,1762197047259,-500.0,0.00022973,2]
[392985396,1762197047268,-271.976407,0.00022973,7]
[392985398,1762197047277,-271.976407,0.00022973,7]
[392985400,1762197047287,-271.976407,0.00022973,7]
[392985402,1762197047297,-271.976407,0.00022973,7]
[392985404,1762197047307,-151.0,0.00022973,7]
[392985406,1762197047316,-151.0,0.00022973,7]
[392985408,1762197047326,-151.0,0.00022973,7]
[392985418,1762197047415,-151.0,0.00022987,7]
[392985420,1762197047428,-395.033585,0.00022987,7]
[392985422,1762197047437,-395.033585,0.00022987,7]
[392985424,1762197047446,-395.033585,0.00022987,7]
[392985426,1762197047457,-395.033585,0.00022987,7]
[392985428,1762197047466,-151.0,0.00022987,7]
[392985430,1762197047476,-151.0,0.00022987,7]
[392985432,1762197047485,-151.0,0.00022987,7]
[392985434,1762197047495,-2463.384819,0.00022987,7]
[392985436,1762197047504,-2463.384819,0.00022987,7]
[392985439,1762197047515,-2463.384819,0.00022987,7]
[392985441,1762197047525,-2463.384819,0.00022987,7]
[392985443,1762197047535,-151.0,0.00022987,7]
[392985445,1762197047545,-151.0,0.00022987,7]
[392985447,1762197047554,-161.844852,0.00022987,7]
[392985449,1762197047563,-151.0,0.00022987,7]
[392985451,1762197047572,-283.358704,0.00022987,7]
[392985452,1762197047582,-151.0,0.00022987,7]
[392985454,1762197047591,-151.0,0.00022987,7]
[392985456,1762197047600,-151.0,0.00022987,7]
[392985458,1762197047609,-5341.96556068,0.00023,2]
[392985460,1762197047618,-1000.0,0.00023,6]
[392985462,1762197047627,-1680.0,0.00023028,2]
[392985464,1762197047637,-177.0,0.00023044,2]
[392985466,1762197047646,-582.24090669,0.00023068,2]
[392985468,1762197047655,-364.09622138,0.00023085,2]
[392985470,1762197047665,-1000.0,0.00023135,2]
[392985472,1762197047674,-242.15909246,0.00023309,2]
[392985474,1762197047684,-500.0,0.00023521,2]
[392985476,1762197047693,-1737.72771548,0.00023672,2]
[392985479,1762197047702,-1500.0,0.00023683,2]
[392985480,1762197047711,-200.0,0.00023812,2]
[392985482,1762197047722,-251.11897888,0.00023857,2]
[392985484,1762197047732,-1000.0,0.00024,7]
[392985487,1762197047742,-114393.42098545,0.00024142,2]
[392985489,1762197047752,-271.976407,0.00024142,7]
[392985491,1762197047761,-271.976407,0.00024142,7]
[392985493,1762197047772,-271.976407,0.00024142,7]
[392985495,1762197047781,-271.976407,0.00024142,7]
[392985497,1762197047791,-151.0,0.00024142,7]
[392985499,1762197047800,-152.428877,0.00024142,7]
[392985501,1762197047810,-154.371137,0.00024142,7]
[392985503,1762197047819,-395.033585,0.00024142,7]
[392985505,1762197047828,-395.033585,0.00024142,7]
[392985507,1762197047837,-395.033585,0.00024142,7]
[392985509,1762197047847,-395.033585,0.00024142,7]
[392985511,1762197047856,-151.0,0.00024142,7]
[392985513,1762197047866,-151.0,0.00024142,7]
[392985515,1762197047876,-151.0,0.00024142,7]
[392985517,1762197047886,-2463.384819,0.00024142,7]
[392985519,1762197047895,-2463.384819,0.00024142,7]
[392985521,1762197047904,-2463.384819,0.00024142,7]
[392985523,1762197047915,-151.0,0.00024142,7]
[392985525,1762197047924,-2463.384819,0.00024142,7]
[392985527,1762197047933,-216.986517,0.00024142,7]
[392985529,1762197047942,-151.0,0.00024142,7]
[392985531,1762197047951,-151.0,0.00024142,7]
[392985533,1762197047960,-151.0,0.00024142,7]
[392985535,1762197047968,-151.0,0.00024142,7]
[392985537,1762197047977,-500.0,0.00024173,2]
[392985539,1762197047986,-500.0,0.00024173,2]
[392985541,1762197047995,-500.0,0.00024173,2]
[392985543,1762197048004,-500.0,0.00024173,2]
[392985545,1762197048013,-500.0,0.00024173,2]
[392985547,1762197048023,-151.0,0.000242,6]
[392985549,1762197048032,-2000.0,0.00024231,2]
[392985551,1762197048041,-1737.72771548,0.0002438,2]
[392985553,1762197048050,-260.4103811,0.00024405,2]
[392985555,1762197048059,-749.3613911,0.00024495,2]
[392985557,1762197048068,-1194.1142176,0.00024495,2]
[392985559,1762197048077,-26857.31,0.000246,7]
[392985561,1762197048086,-25293.85287756,0.0002465,2]
[392985563,1762197048099,-7260.0,0.0002465,2]
[392985762,1762197131468,150.0,0.00020103,2]
[392985763,1762197146836,584.29790623,0.00020909,2]
[392985764,1762197206785,150.0,0.00020391,2]
[392985765,1762197213129,3331.83930009,0.00020961,2]
[392985766,1762197258726,219.24188625,0.00020919,2]
[392985767,1762197261510,6796.3241051,0.00020333,2]
[392985768,1762197278620,150.0,0.00020005,2]
[392985769,1762197279018,150.0,0.00020958,2]
[392985770,1762197351799,150.0,0.00019715,2]
[392985771,1762197352212,150.0,0.00020654,2]
[392985772,1762197354496,9962.41064778,0.00020961,2]
[392985774,1762197395738,776.063064,0.00013699,2]
[392985775,1762197395972,776.063064,0.00020187,2]
[392985776,1762197403718,176.02120117,0.0002092,2]
[392985777,1762197423695,150.0,0.00020005,2]
[392985778,1762197424180,150.0,0.00020958,2]
[392985779,1762197444059,1622.85938757,0.0002092,2]
[392985780,1762197494531,150.0,0.00019826,2]
[392985781,1762197494964,150.0,0.0002077,2]
[392985783,1762197562493,150.0,0.00019852,2]
[392985784,1762197562904,150.0,0.00020797,2]
[392985785,1762197629169,150.0,0.00019544,2]
[392985786,1762197629570,150.0,0.00020475,2]
[392985788,1762197695704,150.0,0.00020057,2]
[392985789,1762197761045,150.0,0.00019611,2]
[392985790,1762197761434,150.0,0.00020545,2]
[392985791,1762197874978,813.600655,0.00020262,2]
[392985792,1762197906475,168.45754679,0.00037371,120]
[392985799,1762198068028,254.19670836,0.000209,2]
[392985800,1762198068077,19745.80329164,0.00018,2]
[392985808,1762198113038,300.10027679,0.0002,7]
[392985814,1762198205312,312.0,0.00021007,2]
[392985815,1762198219643,209.40437684,0.00021007,2]
[392985831,1762198231740,-150.0,0.00021008,2]
[392985833,1762198231751,-1200.0,0.00021008,2]
[392985835,1762198231760,-300.0,0.00021008,2]
[392985837,1762198231770,-300.0,0.00021008,2]
[392985839,1762198231779,-300.0,0.00021008,2]
[392985841,1762198231788,-300.0,0.00021008,2]
[392985843,1762198231798,-205.57403773,0.00021008,2]
[392985845,1762198231808,-1200.0,0.00021009,2]
[392985847,1762198231818,-14658.88636521,0.00021009,2]
[392985899,1762198237621,-500.0,0.00021008,2]
[392985901,1762198237631,-500.0,0.00021008,2]
[392985903,1762198237640,-500.0,0.00021008,2]
[392985905,1762198237649,-523.02452999,0.00021008,2]
[392985907,1762198237659,-500.0,0.00021008,2]
[392985909,1762198237668,-500.0,0.00021008,2]
[392985911,1762198237678,-500.0,0.00021008,2]
[392985913,1762198237687,-228.73838202,0.00021008,2]
[392985915,1762198237696,-275.4643988,0.00021008,2]
[392985917,1762198237708,-208.59704655,0.00021008,2]
[392985919,1762198237720,-291.40295345,0.00021008,2]
[392985921,1762198237729,-360.99069665,0.00021008,2]
[392985923,1762198237738,-14945.64382035,0.00021009,2]
[392986357,1762198242255,-1896.47725409,0.00021009,2]
[392986450,1762198243102,-500.0,0.00021008,2]
[392986452,1762198243112,-1509.53260954,0.00021009,2]
[392986455,1762198243126,-5161.41442174,0.00021009,2]
[392986741,1762198245914,-11828.04552907,0.00021009,2]
[392986743,1762198245924,-456.58,0.0002101,3]
[392986745,1762198245933,-228.29,0.0002101,3]
[392986747,1762198245943,-684.87,0.0002101,3]
[392986749,1762198245952,-7260.37,0.0002101,10]
[392986751,1762198245960,-6050.31,0.0002101,10]
[392986753,1762198245970,-1978.52737721,0.00021017,2]
[392986755,1762198245979,-27590.96658934,0.0002102,2]
[392986758,1762198246002,-339.75881457,0.0002102,2]
[392987575,1762198272400,1484.91479491,0.00020955,2]
[392987576,1762198298905,491.91333254,0.00020909,2]
[392987577,1762198306717,178.187,0.000206,2]
[392987578,1762198334624,150.0,0.00020346,2]
[392987579,1762198361436,206.00281555,0.00020909,2]
[392987580,1762198374705,1096.97587534,0.00020955,2]
[392987582,1762198394347,174756.90087303,0.0002092,2]
[392987583,1762198394376,510243.09912697,0.0002092,2]
[392987584,1762198405863,150.0,0.00019942,2]
[392987585,1762198406248,150.0,0.00020892,2]
[392987586,1762198423388,190.75,0.000207,2]
[392987588,1762198474764,150.0,0.00019661,2]
[392987589,1762198475168,150.0,0.00020597,2]
[392987590,1762198518955,6698.0,0.0003287,120]
[392987591,1762198519411,380414.0,0.00037384,20]
[392987592,1762198541783,150.0,0.00019563,2]
[392987593,1762198542180,150.0,0.00020494,2]
[392987598,1762198568698,14937.2137659,0.0002092,2]
[392987602,1762198816606,50000.0,0.00019,3]
[392987603,1762198816637,50000.0,0.00019,3]
[392987604,1762198816666,49693.09809654,0.00019,3]
[392987605,1762198833730,31599.90190346,0.00018,3]
[392987641,1762199437902,-481.94321573,0.00018988,2]
[392987644,1762199437915,-251.68635057,0.00018988,2]
[392987646,1762199437925,-150.0,0.00018994,2]
[392987648,1762199437934,-500.0,0.00019,2]
[392987650,1762199437944,-150.0,0.00019766,2]
[392987660,1762199438040,-500.0,0.00019986,2]
[392987663,1762199438051,-500.0,0.00019986,2]
[392987665,1762199438063,-500.0,0.00019986,2]
[392987666,1762199438073,-193.00625386,0.00019986,2]
[392987668,1762199438083,-684.0,0.00019986,2]
[392987670,1762199438094,-19.53918746,0.00019986,2]
[392987673,1762199438111,-280.46081254,0.00019986,2]
[392987675,1762199438121,-16.74819516,0.00019986,2]
[392987678,1762199438137,-283.25180484,0.00019986,2]
[392987680,1762199438147,-300.0,0.00019986,2]
[392987682,1762199438156,-300.0,0.00019986,2]
[392987684,1762199438166,-50000.0,0.00019987,2]
[392987686,1762199438176,-7773.96475116,0.0001999,2]
[392987689,1762199438203,-889.1369001,0.0001999,2]
[392987692,1762199438221,-7620.90611049,0.0001999,2]
[392987694,1762199438231,-196.95000197,0.0002,2]
[392987696,1762199438242,-193.6870071,0.00020099,2]
[392987698,1762199438253,-2784.42066039,0.00020117,2]
[392987890,1762199440130,-10870.37798742,0.00020117,2]
[392987892,1762199440141,-209.40437684,0.00020907,2]
[392987894,1762199440151,-228.29,0.0002091,3]
[392987896,1762199440160,-684.87,0.0002091,3]
[392987898,1762199440169,-5041.92,0.0002091,10]
[392987900,1762199440178,-4201.6,0.0002091,10]
[392987902,1762199440188,-3501.34,0.0002091,10]
[392987904,1762199440197,-7890.90510256,0.0002092,2]
[392988543,1762199446455,-150.0,0.00019762,2]
[392988545,1762199446465,-150.0,0.00020703,2]
[392988547,1762199446474,-286.36369892,0.0002092,2]
[392988994,1762200295087,1638.7043531,0.00017979,2]
[392988996,1762200350889,3628.35919083,0.00018032,2]
[392988997,1762200378518,768.991017,0.00013699,2]
[392989006,1762200632007,-166.41306003,0.00018848,2]
[392989008,1762200632017,-1530.61741463,0.00018872,2]
[392989010,1762200632026,-253.0,0.00018873,2]
[392989012,1762200632035,-228.0,0.00018971,2]
[392989014,1762200632044,-300.0,0.00018971,2]
[392989016,1762200632053,-300.0,0.00018971,2]
[392989018,1762200632062,-1200.0,0.00018971,2]
[392989020,1762200632071,-500.0,0.00018971,2]
[392989022,1762200632080,-596.42600045,0.00018971,2]
[392989024,1762200632090,-1200.0,0.00018972,2]
[392989026,1762200632099,-50000.0,0.00018972,2]
[392989028,1762200632108,-209.40437684,0.00018972,2]
[392989030,1762200632118,-500.0,0.00018973,2]
[392989031,1762200632127,-500.0,0.00018973,2]
[392989032,1762200632136,-500.0,0.00018973,2]
[392989033,1762200632146,-500.0,0.00018973,2]
[392989034,1762200632155,-500.0,0.00018973,2]
[392989035,1762200632163,-844.83,0.00018974,3]
[392989036,1762200632172,-422.42,0.00018974,3]
[392989037,1762200632181,-211.21,0.00018974,3]
[392989038,1762200632191,-633.64,0.00018974,3]
[392989039,1762200632200,-251.93979888,0.00018982,2]
[392989040,1762200632209,-500.0,0.00018983,2]
[392989042,1762200632219,-500.0,0.00018983,2]
[392989045,1762200632229,-200000.0,0.00018984,2]
[392989046,1762200632238,-301.28010713,0.00019121,2]
[392989048,1762200632248,-217.15233878,0.0001952,2]
[392989050,1762200632258,-1000.0,0.00019521,2]
[392989052,1762200632267,-150.0,0.00019628,2]
[392989054,1762200632276,-500.74594057,0.00019973,2]
[392989057,1762200632285,-500.0,0.00019973,2]
[392989058,1762200632295,-225.18697532,0.00020068,2]
[392989060,1762200632384,-517.45018803,0.00020068,2]
[392989061,1762200632394,-768.991017,0.00020187,2]
[392989062,1762200632403,-1689.66,0.00020344,3]
[392989063,1762200632413,-844.84,0.00020344,3]
[392989064,1762200632422,-422.42,0.00020344,3]
[392989065,1762200632431,-410.78,0.00020421,2]
[392989066,1762200632441,-1000.0,0.00020521,2]
[392989067,1762200632451,-150.0,0.00020562,2]
[392989068,1762200632461,-233.51889341,0.00020616,2]
[392989069,1762200632471,-420.0,0.00020679,2]
[392989070,1762200632480,-296.0,0.00020679,2]
[392989071,1762200632490,-480.0,0.0002068,2]
[392989072,1762200632499,-918.05736891,0.00020684,2]
[392989073,1762200632509,-507.46382152,0.00020684,2]
[392989074,1762200632520,-926.8912505,0.00020684,2]
[392989075,1762200632531,-391.10820222,0.00020684,2]
[392989077,1762200635755,-325.0,0.00020665,2]
[392989079,1762200635765,-1843.09397191,0.00020684,2]
[392989081,1762200635774,-402.21942907,0.00020726,2]
[392989082,1762200635783,-591.0,0.00020779,2]
[392989084,1762200635793,-196.36741084,0.00020848,2]
[392989086,1762200635802,-500.0,0.00020868,2]
[392989088,1762200635811,-500.0,0.00020973,2]
[392989090,1762200635820,-160.0,0.00021042,2]
[392989092,1762200635830,-582.24090669,0.00021068,2]
[392989094,1762200635838,-512.14372084,0.00021142,2]
[392989096,1762200635848,-242.15909246,0.00021164,2]
[392989098,1762200635857,-500.0,0.0002135,3]
[392989100,1762200635866,-151.0,0.0002135,3]
[392989102,1762200635875,-151.0,0.0002135,3]
[392989104,1762200635884,-151.0,0.0002135,3]
[392989106,1762200635894,-151.0,0.0002135,3]
[392989108,1762200635903,-500.0,0.00021405,3]
[392989110,1762200635912,-151.0,0.00021405,3]
[392989111,1762200635921,-151.0,0.00021405,3]
[392989113,1762200635931,-151.0,0.00021405,3]
[392989114,1762200635940,-151.0,0.00021405,3]
[392989116,1762200635950,-364.64977058,0.0002146,3]
[392989118,1762200635959,-235.37144656,0.0002146,3]
[392989120,1762200635969,-1061.92462488,0.00021521,2]
[392989121,1762200635979,-260.0,0.0002159,2]
[392989122,1762200635987,-251.11897888,0.00021712,2]
[392989123,1762200635996,-855.89540226,0.0002185,2]
[392989124,1762200636006,-3420.15802744,0.0002185,2]
[392989125,1762200636015,-557.61682721,0.00021882,2]
[392989126,1762200636024,-12569.14352428,0.000219,2]
[392989127,1762200636036,-500.0,0.00021905,2]
[392989128,1762200636046,-500.0,0.00021964,2]
[392989129,1762200636055,-500.0,0.00021974,2]
[392989130,1762200636064,-500.0,0.00021974,2]
[392989131,1762200636073,-500.0,0.00021974,2]
[392989132,1762200636082,-1251.11,0.00022,14]
[392989133,1762200636091,-911.87,0.00022,7]
[392989134,1762200636100,-31156.72,0.00022,7]
[392989135,1762200636110,-271.976407,0.00022068,7]
[392989136,1762200636119,-271.976407,0.00022068,7]
[392989137,1762200636128,-271.976407,0.00022068,7]
[392989138,1762200636138,-271.976407,0.00022068,7]
[392989139,1762200636147,-151.0,0.00022068,7]
[392989140,1762200636156,-187.65288,0.00022068,7]
[392989141,1762200636166,-395.033585,0.00022068,7]
[392989142,1762200636175,-395.033585,0.00022068,7]
[392989143,1762200636184,-395.033585,0.00022068,7]
[392989144,1762200636193,-395.033585,0.00022068,7]
[392989145,1762200636202,-500.0,0.00022127,2]
[392989146,1762200636211,-247.60558154,0.00022138,2]
[392989147,1762200636221,-360.0,0.00022138,2]
[392989148,1762200636230,-260.4103811,0.0002226,2]
[392989149,1762200636239,-402.21942907,0.00022279,3]
[392989150,1762200636248,-1045.0,0.00022355,2]
[392989151,1762200636258,-1045.0,0.00022395,2]
[392989152,1762200636267,-1045.0,0.00022432,2]
[392989153,1762200636277,-151.0,0.00022432,7]
[392989154,1762200636286,-278.307965,0.00022432,7]
[392989155,1762200636295,-151.0,0.00022432,7]
[392989156,1762200636304,-151.0,0.00022432,7]
[392989157,1762200636313,-151.0,0.00022432,7]
[392989158,1762200636322,-151.0,0.00022432,7]
[392989159,1762200636331,-3131.037279,0.00022432,7]
[392989160,1762200636340,-3131.037279,0.00022432,7]
[392989161,1762200636349,-3131.037279,0.00022432,7]
[392989162,1762200636359,-3131.037279,0.00022432,7]
[392989163,1762200636376,-151.0,0.00022432,7]
[392989164,1762200636386,-151.0,0.00022432,7]
[392989165,1762200636396,-151.0,0.00022432,7]
[392989166,1762200636405,-151.0,0.00022432,7]
[392989167,1762200636414,-151.0,0.00022432,7]
[392989168,1762200636423,-287.950792,0.00022432,7]
[392989169,1762200636432,-151.0,0.00022432,7]
[392989170,1762200636441,-152.625312,0.00022432,7]
[392989171,1762200636451,-1000.0,0.00022453,2]
[392989172,1762200636461,-953.0,0.00022461,2]
[392989173,1762200636470,-1045.0,0.00022474,2]
[392989174,1762200636480,-1000.0,0.00022522,2]
[392989175,1762200636489,-500.0,0.00022522,2]